Cogmind - Beta 17.1 @@@ ROGUE MODE // 2026.09.15 @ 22:07:22 Player: Ammie Result: Destroyed by G-47 Trooper with Particle Gun Performance ------------- Evolutions (3) 1500 Regions Visited (7) 1400 Robots Destroyed (112) 560 Value Destroyed (3665) 3665 Prototype IDs (32) 640 Alien Tech Used (0) 0 Bonus (302) 302 TOTAL SCORE: 8067 Bonus ------- High Alert Combat Kills 2 Aligned with FarCom 300 Cogmind --------- Core Integrity 0/700 Matter 243/300 Energy 100/100 System Corruption 0% Temperature Cool (18) Movement Core (700) Ox13 Location -7/Factory Parts ------- > --- POWER (1) -------- (None) > --- PROPULSION (4) --- (None) > --- UTILITY (6) ------ Advanced Heat Sink High-capacity Storage Unit Improved Signal Interpreter Hacking Suite System Restoration Module > --- WEAPON (2) ------- (None) > --- INVENTORY (20) --- Faulty Improved Cesium-ion Thruster Transmission Jammer Cloak of Protection Sensor Drone Bay (20/20) Improved Datajack Peak State ------------ > --- POWER ------------ Micro Nuclear Core > --- PROPULSION ------- Cooled VTOL Module Cooled VTOL Module Cooled VTOL Module Cooled VTOL Module > --- UTILITY ---------- Advanced Heat Sink High-capacity Storage Unit Improved Signal Interpreter Hacking Suite Hacking Suite System Shield > --- WEAPON ----------- Plasma Cannon Cooled Particle Cannon > --- INVENTORY -------- Heavy Ion Engine Improved Cesium-ion Thruster High-capacity Storage Unit Transmission Jammer Cloak of Protection System Restoration Module System Restoration Module Sensor Drone Bay Plasma Cannon Heavy Rocket Launcher Improved Datajack [Rating: 55] Favorites ----------- Power Heavy Ion Engine Engine Heavy Ion Engine Power Core Micro Nuclear Core Propulsion Improved Treads Treads Improved Treads Flight Unit Cooled VTOL Module Utility High-capacity Storage Unit Device Structural Scanner Storage High-capacity Storage Unit Processor Improved Signal Interpreter Hackware Hacking Suite Protection Light Armor Plating Weapon Heavy Particle Cannon Energy Gun Medium Laser Energy Cannon Heavy Particle Cannon Ballistic Gun Light Assault Rifle Launcher Grenade Launcher Special Melee Weapon Datajack Build | -11 -10 -9 -9 -9 -8 -8 -7 ------- Run | Yrd Mat Mat Min Exi Min Mat Fac Slots Evolved 6 | . . 2 . . . 2 2 Power . | . . . . . . . . Propulsion 2 | . . 1 . . . 1 . Utility 4 | . . 1 . . . 1 2 Weapon . | . . . . . . . . Parts Attached 79 | 6 18 13 1 . 1 19 21 Power 8 | 1 . 3 . . . 1 3 Engine 5 | 1 . 3 . . . 1 . Core 3 | . . . . . . . 3 Reactor . | . . . . . . . . Propulsion 19 | 2 4 3 . . . 4 6 Treads 13 | 2 4 3 . . . 2 2 Leg . | . . . . . . . . Wheel . | . . . . . . . . Hover . | . . . . . . . . Flight 6 | . . . . . . 2 4 Utility 26 | 1 6 2 1 . . 6 10 Device 15 | . 2 2 1 . . 5 5 Storage 4 | 1 2 . . . . 1 . Processor 1 | . . . . . . . 1 Hackware 4 | . . . . . . . 4 Protection 2 | . 2 . . . . . . Artifact . | . . . . . . . . Weapon 26 | 2 8 5 . . 1 8 2 Energy Gun 6 | 2 . 2 . . . 2 . Energy Cannon 16 | . 4 3 . . 1 6 2 Ballistic Gun 2 | . 2 . . . . . . Ballistic Cannon . | . . . . . . . . Launcher 1 | . 1 . . . . . . Special Weapon . | . . . . . . . . Impact Weapon . | . . . . . . . . Slashing Weapon . | . . . . . . . . Piercing Weapon . | . . . . . . . . Special Melee Weapon 1 | . 1 . . . . . . Unidentified Prototypes 9 | . . 1 1 . . 6 1 Parts Lost 28 | . 1 . . . 1 4 22 Power 3 | . . . . . . 1 2 Propulsion 11 | . . . . . . 1 10 Utility 9 | . . . . . . 1 8 Weapon 5 | . 1 . . . 1 1 2 Highest Loss Streak 9 | . 1 . . . 1 2 9 To Critical Strikes . | . . . . . . . . Average Backups 17 | 1 9 17 20 20 19 19 18 Power 1 | . 1 1 2 2 2 1 1 Propulsion 2 | . 1 1 2 2 2 2 4 Utility 4 | . 1 3 4 6 6 6 6 Weapon 6 | . 3 9 10 9 8 7 4 Tool/Special . | . . . . . . . . Unused Backups 32 | . 1 9 1 1 . 8 12 Power 3 | . . 2 . . . . 1 Propulsion 4 | . . . . . . 2 2 Utility 7 | . 1 1 . 1 . 3 1 Weapon 17 | . . 6 1 . . 3 7 Tool/Special 1 | . . . . . . . 1 Average Slot Usage (%) 97 | . 97 99 100 100 99 99 93 Engine 9 | . 13 11 11 11 11 9 1 Core 1 | . . . . . . . 4 Treads 30 | . 28 32 33 33 33 35 24 Device 19 | . 8 21 22 22 22 26 17 Storage 10 | . 14 11 11 11 11 9 7 Processor 1 | . . . . . . . 7 Hackware 2 | . . . . . . . 11 Energy Cannon 19 | . 22 21 22 22 21 17 14 Peak Build Rating 55 | 6 12 24 31 25 25 44 55 Average Rating 28 | 4 11 21 23 24 24 36 45 On Entrance 19 | . 6 12 23 25 25 25 38 Avg Prop Armor Cover (%) 8 | . 8 . . . . . 9 Naked Turns . | . . . . . . . . Heaviest Build 78 | 14 56 63 76 63 63 75 78 Greatest Support 92 | 40 46 69 69 69 69 92 92 Greatest Overweight (x) 20 | 3 1 1 1 . . 1 20 Average Overweight (x) . | . . . . . . . . Largest Inventory Capacity 20 | 8 20 20 20 20 20 20 20 Average Capacity 19 | 7 16 20 20 20 20 20 20 Most Carried 20 | 2 12 20 20 20 20 20 20 Average Carried 17 | 1 9 17 19 19 19 19 18 Final Capacity 20 | 8 20 20 20 20 20 20 20 Final Carried 20 | 2 12 20 20 20 19 20 5 Class Distribution -------------------- 86% | Mutant 13% | Hacker-Mutant Dominant Class ---------------- Mutant | -10/Materials Mutant | -9/Materials Mutant | -9/Mines Mutant | -9/Exiles Mutant | -8/Mines Mutant | -8/Materials Hacker-Mutant | -7/Factory Resources | -11 -10 -9 -9 -9 -8 -8 -7 ----------- Run | Yrd Mat Mat Min Exi Min Mat Fac Matter Collected 1375 | 193 372 250 . . 50 335 175 Remotely . | . . . . . . . . Salvage Created 4419 | . 840 1348 . . 104 1313 814 Parts 269 | . 50 88 . . 4 87 40 Haulers Intercepted 12 | . 2 6 . . . 4 . Recyclers Shooed 1 | . . 1 . . . . . Parts Field Recycled . | . . . . . . . . Retrieved Matter . | . . . . . . . . Parts Self-Destructed . | . . . . . . . . Prevented . | . . . . . . . . Parts Restored . | . . . . . . . . Kills | -11 -10 -9 -9 -9 -8 -8 -7 ------- Run | Yrd Mat Mat Min Exi Min Mat Fac Combat Hostiles Destroyed 81 | . 19 18 . . 2 25 17 Melee 2 | . . . . . . 1 1 Guns 5 | . 5 . . . . . . Cannons 67 | . 13 17 . . 2 22 13 AOE 3 | . . 1 . . . . 2 Classes Destroyed 13 | . 5 4 . . 1 1 2 Builder 4 | . . 3 . . . 1 . Tunneler 1 | . . . . . . . 1 Hauler 12 | . 2 6 . . . 4 . Recycler 2 | . 1 1 . . . . . Operator 1 | . . 1 . . . . . Watcher 11 | . 3 3 . . . 4 1 Swarmer 14 | . 6 . . . . 8 . Grunt 42 | . 13 10 . . . 8 11 Brawler 1 | . . . . . . 1 . Duelist 2 | . . 2 . . . . . Sentry 15 | . . 6 . . . 7 2 Hunter 3 | . . . . . 2 1 . Programmer 4 | . . . . . . . 4 Best Kill Streak 7 | . 5 7 . . 1 5 5 Combat Bots Only 5 | . 3 3 . . 1 5 5 Max Kills in Single Turn 2 | . 2 2 . . 1 1 2 Gunslinging . | . . . . . . . . Exploded 2 | . . 1 . . . . 2 Melee 1 | . . . . . . 1 1 Uniques/NPCs Destroyed . | . . . . . . . . Combat | -11 -10 -9 -9 -9 -8 -8 -7 -------- Run | Yrd Mat Mat Min Exi Min Mat Fac Hostile Shots Fired 558 | . 93 42 . . 16 130 277 Missed 177 | . 29 8 . . 6 37 97 Hits 381 | . 64 34 . . 10 93 180 Melee 3 | . . 2 . . . 1 . Projectile 378 | . 64 32 . . 10 92 180 Critical Strikes 13 | . 1 . . . . 3 9 Part Disruptions 1 | . . . . . . . 1 Damage Taken 5348 | . 698 482 . . 439 1062 2667 Core 1122 | . 138 79 . . 63 137 705 Absorbed by Shields . | . . . . . . . . Redirected to Shielding 2 | . 2 . . . . . . Regen/Repaired (Parts) 148 | . 49 . . . . 99 . Core Remaining (%) 70 | 100 44 . . . 64 75 . Volleys Fired 348 | . 63 77 11 . 13 106 78 Largest 2 | . 2 2 2 . 2 2 2 Hottest 180 | . 136 150 150 . 150 180 180 Shots Fired 615 | . 115 145 22 . 26 192 115 Gun 57 | . 57 . . . . . . Cannon 553 | . 56 142 22 . 26 192 115 Launcher 5 | . 2 3 . . . . . Special . | . . . . . . . . Kinetic 16 | . 16 . . . . . . Thermal 585 | . 88 142 22 . 26 192 115 Explosive 5 | . 2 3 . . . . . Electromagnetic 9 | . 9 . . . . . . Robot Hit Streak 21 | . 13 9 . . 6 21 10 Robot Miss Streak 5 | . 5 4 . . 3 4 3 Penetration Max . | . . . . . . . . Secondary Targets . | . . . . . . . . Shots Hit Robots 267 | . 69 57 . . 11 85 45 Core Hits 125 | . 28 35 . . 4 36 22 Critical Kills 5 | . 1 . . . . 3 1 Critical Parts Destroyed . | . . . . . . . . Critical Strikes 7 | . 3 . . . . 3 1 Burn 2 | . 2 . . . . . . Meltdown 5 | . 1 . . . . 3 1 Melee Attacks 3 | . 3 . . . . . . Impact . | . . . . . . . . Slashing . | . . . . . . . . Piercing . | . . . . . . . . Sneak Attacks 3 | . 3 . . . . . . Combat Hostiles . | . . . . . . . . Follow-up Attacks . | . . . . . . . . Damage Inflicted 7759 | . 1067 1411 . . 275 2512 2494 Guns 409 | . 409 . . . . . . Cannons 6686 | . 657 1384 . . 275 2481 1889 Explosions 625 | . . 23 . . . . 602 Melee . | . . . . . . . . Ramming 39 | . 1 4 . . . 31 3 Kinetic 89 | . 89 . . . . . . Thermal 7295 | . 905 1384 . . 275 2481 2250 Explosive 264 | . . 23 . . . . 241 Electromagnetic 72 | . 72 . . . . . . Impact . | . . . . . . . . Slashing . | . . . . . . . . Piercing . | . . . . . . . . Highest Corruption 5 | . 1 . . . 5 3 3 Average Corruption 2 | . 1 . . . 5 3 1 Corruption Purged 5 | . . . . . . . 5 Corruption Blocked . | . . . . . . . . Effects 36 | . 12 . . . 4 15 5 Message Errors 10 | . 4 . . . . 5 1 Matter Fused 3 | . . . . . . 2 1 Heat Flow Errors 4 | . 1 . . . . 2 1 Energy Discharges 5 | . 2 . . . 2 1 . Parts Fused 1 | . . . . . . 1 . Data Loss (minor) 4 | . 1 . . . 1 2 . Data Loss (major) 4 | . 3 . . . 1 . . Misfires 2 | . . . . . . 1 1 Alerts 3 | . 1 . . . . 1 1 Overload Shots 44 | . . . . . . 5 39 Effects 5 | . . . . . . 1 4 Energy Bleed 4 | . . . . . . 1 3 Heat Surge 1 | . . . . . . . 1 Overflow Damage 308 | . 12 25 . . . 43 228 Projectiles 189 | . 12 25 . . . 43 109 Explosions 119 | . . . . . . . 119 Melee . | . . . . . . . . Knockbacks 1 | . . . . . . 1 . Impact 1 | . . . . . . 1 . Kinetic . | . . . . . . . . Secondary . | . . . . . . . . Self-Inflicted Damage 282 | . 7 13 . . 45 . 217 Shots 7 | . 1 1 . . 1 . 4 Rammed 5 | . 1 . . . . 4 . Targets Rammed 8 | . 1 1 . . . 5 1 Kicked . | . . . . . . . . Crushed 3 | . . 1 . . . 1 1 Highest Temperature 513 | . 399 336 126 . 90 249 513 Average Temperature 91 | . 142 62 50 . 37 31 145 Received Heat Transfer 1989 | . 288 183 . . . 279 1239 Effects 14 | . 7 . . . . . 7 Shutdowns 2 | . 1 . . . . . 1 Interference 6 | . 4 . . . . . 2 Matter Decay 2 | . 1 . . . . . 1 Short Circuit 2 | . 1 . . . . . 1 Damage (minor) 2 | . . . . . . . 2 Siege Activations . | . . . . . . . . Martial Activations . | . . . . . . . . Shielding Activations . | . . . . . . . . Robots Disrupted . | . . . . . . . . Combat Hostiles . | . . . . . . . . Robots Corrupted . | . . . . . . . . Combat Hostiles . | . . . . . . . . Parts Fried . | . . . . . . . . Impact Corruptions . | . . . . . . . . Robots Melted 5 | . 1 . . . . 3 1 Combat Hostiles 4 | . 1 . . . . 2 1 Parts Melted 26 | . 7 2 . . 1 10 6 Heat Transferred 10343 | . 2072 2220 . . 407 3369 2275 Parts Sabotaged . | . . . . . . . . Parts Stolen . | . . . . . . . . Parts Stripped . | . . . . . . . . Power Chain Reactions . | . . . . . . . . Alert | -11 -10 -9 -9 -9 -8 -8 -7 ------- Run | Yrd Mat Mat Min Exi Min Mat Fac Maximum Alert Level 2 | . . 1 . . . 2 1 Low Security (%) 79 | 100 100 45 100 . 100 77 90 Level 1 18 | . . 54 . . . 14 9 Level 2 1 | . . . . . . 8 . Level 3 . | . . . . . . . . Level 4 . | . . . . . . . . Level 5 . | . . . . . . . . High Security . | . . . . . . . . Max Security . | . . . . . . . . Peak Influence 420 | . 147 280 85 . 58 420 351 Initial 189 | . . 18 85 . . . 189 Average 96 | . 46 173 15 . 4 103 103 Influence Increases 3252 | . 632 797 8 . 96 905 814 Destroy 0b10 Robot/C 1620 | . 380 360 . . 40 500 340 Destroy 0b10 Robot/NC 155 | . 30 70 . . . 45 10 Destroy Leader 476 | . 90 138 . . 20 146 82 Successful Hack 99 | . 42 29 . . . 8 20 Disable Machine 420 | . 30 105 . . 15 45 225 Destroy Structure 347 | . 15 95 8 . 21 86 122 Lose Combat Pursuer 135 | . 45 . . . . 75 15 Influence Decreases 2995 | . 587 623 227 . 96 487 975 Entered New Map 390 | . . 27 134 . . . 229 Time Decay 2253 | . 476 596 93 . 95 447 546 Lost Part 241 | . . . . . 1 40 200 Purge Threat 111 | . 111 . . . . . . Squads Dispatched 23 | . 5 3 . . . 4 11 Investigation 10 | . 4 2 . . . 2 2 Extermination 5 | . . . . . . . 5 Reinforcement 4 | . 1 1 . . . 1 1 Assault 1 | . . . . . . 1 . Garrison 3 | . . . . . . . 3 Intercept . | . . . . . . . . Searches Triggered . | . . . . . . . . Construction Impeded 1 | . . 1 . . . . . Haulers Reinforced 1 | . . . . . . . 1 Active Scanning Responses . | . . . . . . . . Cargo Convoy Interrupts . | . . . . . . . . Stealth | -11 -10 -9 -9 -9 -8 -8 -7 --------- Run | Yrd Mat Mat Min Exi Min Mat Fac Distress Signals 8 | . 3 1 . . . 4 . Communications Jammed . | . . . . . . . . Distress Signals . | . . . . . . . . Times Spotted 121 | . 25 24 . . 2 46 24 Peak Tracking Total 6 | . 3 4 . . 1 5 6 Tactical Retreats 6 | . 2 . . . . 3 1 Traps | -11 -10 -9 -9 -9 -8 -8 -7 ------- Run | Yrd Mat Mat Min Exi Min Mat Fac Traps Triggered 5 | . 1 2 . . . 1 1 Indirectly . | . . . . . . . . Trap Hack Attempts . | . . . . . . . . Triggered . | . . . . . . . . Disarmed . | . . . . . . . . Reprogrammed . | . . . . . . . . Reused . | . . . . . . . . Traps Extracted . | . . . . . . . . Installed . | . . . . . . . . Triggered . | . . . . . . . . Machines | -11 -10 -9 -9 -9 -8 -8 -7 ---------- Run | Yrd Mat Mat Min Exi Min Mat Fac Machines Disabled 29 | . 2 8 . . 1 3 15 Max in Single Turn 7 | . 1 2 . . 1 1 7 Garrison Access 1 | . . . . . . 1 . Machines Repaired . | . . . . . . . . Machines Dismantled . | . . . . . . . . Machines Sabotaged . | . . . . . . . . Overloaded Fab Kills . | . . . . . . . . Hacking | -11 -10 -9 -9 -9 -8 -8 -7 --------- Run | Yrd Mat Mat Min Exi Min Mat Fac Machines Accessed 36 | . 7 11 1 3 . 10 4 Terminals 23 | . 6 8 . . . 6 3 Fabricators . | . . . . . . . . Repair Stations 3 | . 1 1 . . . 1 . Recycling Units . | . . . . . . . . Scanalyzers 4 | . . 2 . . . 2 . Garrison Access 2 | . . . . . . 1 1 Total Hacks 116 | . 22 29 1 26 . 29 9 Successful 74 | . 13 15 1 26 . 17 2 Failed 42 | . 9 14 . . . 12 7 Catastrophic 2 | . . . . . . 1 1 Database Lockouts . | . . . . . . . . Manual 37 | . 12 15 . 1 . 4 5 Terminals 62 | . 18 24 . . . 13 7 Fabricators . | . . . . . . . . Repair Stations 10 | . 4 2 . . . 4 . Recycling Units . | . . . . . . . . Scanalyzers 13 | . . 3 . . . 10 . Garrison Access 4 | . . . . . . 2 2 Terminal Hacks 40 | . 5 4 1 26 . 4 . Record 25 | . . . . 25 . . . Open Door 1 | . . . 1 . . . . Emergency Access Points 1 | . . 1 . . . . . Alert Level 1 | . . . . . . 1 . Unreport Threat 1 | . 1 . . . . . . Locate Traps 1 | . . 1 . . . . . Hauler Manifests 4 | . 1 2 . . . 1 . Registered Components 2 | . 1 . . . . 1 . Zone Layout 3 | . 2 . . . . 1 . Proto ID Catalog 1 | . . . . 1 . . . Fabricator Hacks . | . . . . . . . . Repair Station Hacks 6 | . 2 2 . . . 2 . Scan Component 3 | . 1 1 . . . 1 . Repair 3 | . 1 1 . . . 1 . Recycling Unit Hacks . | . . . . . . . . Scanalyzer 12 | . . 3 . . . 9 . Insert Component 4 | . . 1 . . . 3 . Analyze 6 | . . 1 . . . 5 . Retrieve Study 2 | . . 1 . . . 1 . Garrison Access Hacks 1 | . . . . . . 1 . Seal Access 1 | . . . . . . 1 . Unauthorized Hacks 15 | . 6 6 . . . 1 2 Terminals 15 | . 6 6 . . . 1 2 Assimilate 5 | . 2 3 . . . . . Botnet 8 | . 3 2 . . . 1 2 Operators 2 | . 1 1 . . . . . Fabricators . | . . . . . . . . Repair Stations . | . . . . . . . . Recycling Units . | . . . . . . . . Scanalyzers . | . . . . . . . . Garrison Access . | . . . . . . . . Data Cores Recovered . | . . . . . . . . Used . | . . . . . . . . Hacking Detections 24 | . 7 7 . . . 6 4 Full Trace Events 8 | . 4 1 . . . 1 2 Feedback Events 1 | . 1 . . . . . . Corruption 1 | . 1 . . . . . . Feedback Blocked . | . . . . . . . . Robot Schematics Acquired . | . . . . . . . . Robots Built . | . . . . . . . . Authchips . | . . . . . . . . Time . | . . . . . . . . Total Robot Build Rating . | . . . . . . . . Part Schematics Acquired 4 | . . 1 . . . 3 . Parts Built . | . . . . . . . . Authchips . | . . . . . . . . Time . | . . . . . . . . Total Part Build Rating . | . . . . . . . . Part Studies Acquired 2 | . . 1 . . . 1 . Parts Repaired 3 | . 1 1 . . . 1 . Time 102 | . 26 44 . . . 32 . Parts Recycled . | . . . . . . . . Recycled Matter . | . . . . . . . . Retrieved Matter . | . . . . . . . . Retrieved Components . | . . . . . . . . Parts Scanalyzed 4 | . . 1 . . . 3 . Part Schematics Acquired 4 | . . 1 . . . 3 . Parts Damaged . | . . . . . . . . Bothacking | -11 -10 -9 -9 -9 -8 -8 -7 ------------ Run | Yrd Mat Mat Min Exi Min Mat Fac Used RIF Installer . | . . . . . . . . Robots Hacked 1 | . 1 . . . . . . Non-combat 1 | . 1 . . . . . . Combat . | . . . . . . . . Robot Hacks Applied 3 | . 3 . . . . . . parse_system 1 | . 1 . . . . . . no_distress 1 | . 1 . . . . . . check_alert 1 | . 1 . . . . . . Relay Couplers Released . | . . . . . . . . Fabnet Peak Effective % . | . . . . . . . . Robots Rewired . | . . . . . . . . Allies Hacked . | . . . . . . . . Hacks Repelled . | . . . . . . . . Allies | -11 -10 -9 -9 -9 -8 -8 -7 -------- Run | Yrd Mat Mat Min Exi Min Mat Fac Total Allies 2 | . . 1 1 . . . . Largest Group 1 | . . 1 1 1 . . . Highest-Rated Group 31 | . . 10 31 31 . . . Highest-Rated Ally 31 | . . 10 31 31 . . . Total Orders 1 | . . 1 . . . . . STAY 1 | . . 1 . . . . . Ally Attacks . | . . . . . . . . Total Damage . | . . . . . . . . Kills . | . . . . . . . . Allies Corrupted . | . . . . . . . . Allies Melted . | . . . . . . . . Intel | -11 -10 -9 -9 -9 -8 -8 -7 ------- Run | Yrd Mat Mat Min Exi Min Mat Fac Active Infowar (turns) 7404 | . 878 2705 505 442 1093 1756 25 Sensors 1 | . . . . . . 1 . Structural 7379 | . 878 2705 505 442 1093 1756 . Seismic 1 | . . . . . . 1 . Cloaking 121 | . . . . . . 96 25 Robot Analysis Total . | . . . . . . . . Derelict Logs Recovered 1 | . . . 1 . . . . Drone Launches . | . . . . . . . . Drone Recoveries . | . . . . . . . . Exploration | -11 -10 -9 -9 -9 -8 -8 -7 ------------- Run | Yrd Mat Mat Min Exi Min Mat Fac Turns Passed 11868 | 66 1968 2706 513 442 1093 2557 2523 Spaces Moved 5522 | 40 799 1285 292 276 582 1091 1157 Core 15 | 9 . . . . . . 6 Treads 5455 | 31 799 1285 292 276 582 1091 1099 Legs . | . . . . . . . . Wheels . | . . . . . . . . Hover . | . . . . . . . . Flight 52 | . . . . . . . 52 Fastest Speed 50 | 50 160 160 160 160 160 156 79 Average Speed 168 | 141 208 160 160 160 160 160 169 Slowest Speed 1050 | 200 240 240 240 160 160 240 1050 Overloaded Moves 26 | . . . . . . . 26 Propulsion Burnouts . | . . . . . . . . Robots Hopped . | . . . . . . . . Potential Cave-ins 7 | . . 5 . . 2 . . Cave-ins Triggered 1 | . . . . . 1 . . Exploration Rate (%) 60 | 3 92 66 66 60 76 88 33 Regions Visited 7 Branch Regions 3 Pre-discovered Areas 1 | . . . . 1 . . . Known Exits Taken . | . . . . . . . . Unknown Exits Taken 7 | 1 1 1 1 1 1 1 . Scrap Searched 3 | . . . 1 . 2 . . Spaces Dug 105 | . . 25 6 . 6 44 24 Terrain Destroyed 373 | . 17 102 20 . 24 90 120 Melee . | . . . . . . . . Projectile 211 | . . 45 20 . 14 90 42 AOE 162 | . 17 57 . . 10 . 78 Terrain Rammed . | . . . . . . . . Walls Destroyed . | . . . . . . . . Machines Disabled . | . . . . . . . . Actions | -11 -10 -9 -9 -9 -8 -8 -7 --------- Run | Yrd Mat Mat Min Exi Min Mat Fac Total 7461 | 47 987 1798 314 277 716 1710 1612 Wait 1329 | . 79 374 6 . 118 430 322 Move 5515 | 39 798 1284 291 275 581 1090 1157 Hop . | . . . . . . . . Pick Up 73 | 2 13 22 2 1 . 21 12 Fast Attach 17 | 6 2 2 . . . 4 3 Attach 25 | . 2 2 . . 1 4 16 Detach 3 | . 1 . . . . 1 1 Swap 71 | . 18 18 2 . 3 24 6 Drop 69 | . 7 18 2 1 . 25 16 Fire 348 | . 63 77 11 . 13 106 78 Melee 3 | . 3 . . . . . . Ram . | . . . . . . . . Kick . | . . . . . . . . Crush 8 | . 1 1 . . . 5 1 Escape Stasis . | . . . . . . . . Rewire . | . . . . . . . . Trap . | . . . . . . . . Miscellaneous . | . . . . . . . . Route ------- -11/Scrapyard -10/Materials (discovered 4 exits: *Mat x2 / [*Min] / [*Sub]) -9/Materials (discovered 3 exits: *Mat x2 / *Min) -9/Mines (discovered 3 exits: *Mat x2 / *Exi) -9/Exiles -8/Mines -8/Materials (discovered 2 exits: *Fac x2) -7/Factory (discovered 2 exits: [*Fac] / *Sto) History --------- Turn | Location | Event 21 | -11/Scrapyard | Discovered new exit (range 15) 67 | -11/Scrapyard | Entered Materials 313 | -10/Materials | Build established: Mutant 451 | -10/Materials | Discovered new exit (range 8) 605 | -10/Materials | Repaired Ion Engine 649 | -10/Materials | Discovered new exit (range 4) 877 | -10/Materials | Discovered new exit (range 11) 1205 | -10/Materials | Discovered new exit (range 7) 1955 | -10/Materials | Core integrity fell below 50% 2035 | -10/Materials | Entered another Materials area 2035 | -9/Materials | Evolved 2 slots: Propulsion x1, Utility x1 2641 | -9/Materials | Discovered new exit (range 8) 2773 | -9/Materials | Repaired Broken Imp. Treads 2878 | -9/Materials | Discovered new exit (range 7) 3194 | -9/Materials | Discovered new exit (range 3) 4741 | -9/Materials | Entered Mines 4748 | -9/Mines | Learned Materials security intel 5005 | -9/Mines | Received a Mining Laser from a helpful Derelict 5082 | -9/Mines | Discovered new exit (range 3) 5102 | -9/Mines | Found a damaged Exp. Sensor Array with a note attached 5111 | -9/Mines | Found Prototype Device 5155 | -9/Mines | Discovered new exit (range 8) 5185 | -9/Mines | Found the Drone Emporium 5209 | -9/Mines | Found Prototype Device 5209 | -9/Mines | Identified Sensor Drone Bay 5246 | -9/Mines | Deemed a non-threat by the Exiles lab entrance 5246 | -9/Mines | Discovered new exit (range 6) 5254 | -9/Mines | Entered Exiles 5254 | -9/Exiles | Accompanied by 1 ally 5293 | -9/Exiles | Met 8R-AWN 5320 | -9/Exiles | Met EX-HEX 5368 | -9/Exiles | Met EX-BIN 5474 | -9/Exiles | Aligned with FarCom system 5475 | -9/Exiles | Given EX-Vault access code 5512 | -9/Exiles | Opened EX-Vault 5527 | -9/Exiles | Found Cloak of Protection 5558 | -9/Exiles | Warned to stay clear of 0b10 Research branches 5605 | -9/Exiles | Met EX-DEC 5611 | -9/Exiles | Learned location of Zion (-6) 5675 | -9/Exiles | Discovered new exit (range 14) 5696 | -9/Exiles | Left Exiles lab with Cloak of Protection 5696 | -9/Exiles | Entered Mines 6665 | -8/Mines | Discovered new exit (range 10) 6668 | -8/Mines | Crushed by falling debris 6789 | -8/Mines | Entered Materials 6789 | -8/Materials | Evolved 2 slots: Propulsion x1, Utility x1 6854 | -8/Materials | Identified Exp. Sensor Array 7291 | -8/Materials | Discovered new exit (range 5) 8104 | -8/Materials | Repaired Imp. Treads 8301 | -8/Materials | Discovered new exit (range 3) 9189 | -8/Materials | First assault squad dispatched 9346 | -8/Materials | Entered Factory 9346 | -7/Factory | Evolved 2 slots: Utility x2 10325 | -7/Factory | Garrison activated, responded to threat 10377 | -7/Factory | Build established: Hacker-Mutant 10476 | -7/Factory | Discovered new exit (range 12) 10736 | -7/Factory | Discovered new exit (range 15) 10795 | -7/Factory | Identified exit to Storage 11700 | -7/Factory | Core integrity fell below 50% 11728 | -7/Factory | Lost 9 parts (1p3n3u2w) 11812 | -7/Factory | Lost 3 parts (1p2u) 11850 | -7/Factory | Core integrity fell below 20% 11869 | -7/Factory | Destroyed by G-47 Trooper with Particle Gun Last Messages --------------- 11755_ U-05 Engineer lays Concrete. 11756_ System Shield destroyed. 11756_ U-05 Engineer lays Concrete. 11756_ R-06 Scavenger collects Imp. Heat Sink. 11756_ U-05 Engineer lays Concrete. 11757_ K-01 Serf destroyed. 11758_ U-05 Engineer lays Concrete. 11766_ Dropped Hvy. Rocket Launcher. 11767_ System corrupted: Heat flow error (+232). 11767_ Dropped Plasma Cannon. 11767_ Dropped Hvy. Ion Engine. 11781_ Hacking Suite destroyed. 11845_ System Restoration Module purges 1% system corruption (0%). 11845_ Cld. VTOL Module destroyed. 11846_ Critical hit (Burn: +37). 11847_ Cld. VTOL Module destroyed. 11867_ System Restoration Module destroyed. 11867_ K-01 Serf destroyed. 11868_ Extracted 50 matter. 11869_ Cld. VTOL Module destroyed. Map ----- +----------------------------------------------------+ | ## """"" # #??# | | ## """"" # #??# ########### #" | | [## """ # #??# #?????????#??# | | ## # """ #??#*#????????????? | | ## """"" # """ #??#]#????????????? | | ## """"" # """ #??#]#????????????? | | ## """ # ![= #??# #????????????? | | ## # """ ![= #??# #????????????? | | ! ## """"" # """ !== ##?# #????????????? | | ## """"" # """ ##?# #????????????? | | ## """ # ! #??# #????????????? | | ########### ##############??# #????????????? | | #####?????# """"" ########????##??# #????????????? | | !! #?????# """"" # #????????# #????????????? | | !! #?????# """ # """ #????????# #????????????? | | ! #?????# # """ #????????# #????????????? | | #?????#+####### """ |#????????# #????????????? | | ! ??????# #?????# #????????# #????????????? | | ????????# ####??# #????????# #????????????? | | ########### #T #####+############## #????????????? | | w #????????????? | | ##### Y #????????????? | | ## r """"" """ #????????????? | | ## [] """"" """ #????????????? | | ## [ !!! """ """ #????????????? | | ## !!! g @ #????????????? | | + """T""" !!! g % #????????????? | | ##+############################# #????????????? | | # #????????????????? #????????????? | | #### ! #????????????????? #????????????? | | ???# #????????????????? #????????????? | | ???# = #????????????????? #????????????? | | ???# = #????????????????? ????????????? | | ???# #????????????????? ????????????? | | ???###############????????????????? ????????????? | | #??????????????????????????????????? ????????????? | | #????????????????????????????????????????????????? | | #????????????????????????????????????????????????? | | #????????????????????????????????????????????????? | | #????????????????????????????????????????????????? | | #????????????????????????????????????????????????? | | #????????????????????????????????????????????????? | | ########?????????????????????????????????????????? | | # #?????????????????????????????????????????? | | + """" #??????? ???????????????????????????????? | | # """" #??????? #??????????????????????????? ## | | # """" #?? ???? +??????????????????????????? | | # """" ?##+#?## #??????????????????????????? | | # ? #??????????????????????????? | | ####+### #??????????????????????????????? | +----------------------------------------------------+ Best States ------------- Heat Dissipation 61 Energy Generation 15 Energy Capacity 280 Matter Stores 300 Matter Capacity 300 Sight Range 16 Terrain Scan Density 10 Cloak Strength 5 Armor Coverage 150 Power Shielding 33 Evasion (%) 44 Recoil Reduction 4 Energy Filtering 30 Particle Charging 15 Offensive Hacking 20 Defensive Hacking 10 Item Schematics ----------------- Hvy. Particle Cannon | -9/Materials | Scanalyzed ECM Suite | -8/Materials | Scanalyzed Imp. VTOL Module | -8/Materials | Scanalyzed Hacking Suite | -8/Materials | Scanalyzed Robot Schematics ------------------ None Fabricated ------------ Nothing Repaired ---------- Ion Engine | 18% | -10/Materials Imp. Treads | 99% | -9/Materials | Broken Imp. Treads | 36% | -8/Materials Studied --------- Particle Cannon | -9/Materials | Hacked Hvy. Particle Cannon | -8/Materials | Hacked Alien Tech Used ----------------- None Achievements -------------- Whoosh! Challenges ------------ None Game ------ Seed AccelerationSurveybotRigger Manual? 0 Play Time 01:35:00 Cumulative 94.5 hours Start 2026.09.15 @ 20:12:29 End 2026.09.15 @ 22:07:22 Sessions 1 Manual Loads 0 Difficulty Rogue Special Mode None Game No. 150 Rogue 150 Adventurer 0 Explorer 0 Win Type - Total 0 Types 0/0/0/0/0/0/0/0/0/0 Lore% 23 Gallery% 33 Achievement% 30 Wizard Run 0 Options --------- Layout 0 ASCII 0 Keyboard 0 Movement Mouse Keybinds 0 Fullscreen 1 Font 24/Smallcaps Map View 38x25 Zoom Use 99% Tactical HUD 1 Map Filters NONE Filters NONE Steam 1 RUN: b9a51357-9fdd-4cc8-980c-301b3ab63b6a